[Event "44th Chess Olympiad Open 2022"]
[Site "Chennai"]
[Date "2022.07.29"]
[Round "1.79"]
[White "Samuel Merhawi Gebrehiwet"]
[Black "Gengler, Pierre"]
[Result "0-1"]
[WhiteElo "1616"]
[BlackElo "2194"]
[Annotator "NA"]
[PlyCount "70"]
[EventDate "2022.??.??"]
[TimeControl "60"]

1. Nf3 {[%emt 0:00:22]} c5 {[%emt 0:00:12]} 2. c4 {[%emt 0:00:49]} Nc6 {
[%emt 0:00:20]} 3. g3 {[%emt 0:00:40]} e6 {[%emt 0:01:10]} 4. Nc3 {[%emt 0:00:
00]} d5 {[%emt 0:00:59]} 5. cxd5 {[%emt 0:00:43]} exd5 {[%emt 0:00:04]} 6. d4 {
[%emt 0:00:16]} cxd4 {[%emt 0:05:15]} 7. Nxd4 {[%emt 0:00:18]} Bc5 {[%emt 0:00:
00]} 8. Nb3 {[%emt 0:03:37]} Bb4 {[%emt 0:11:15]} 9. Bg2 {[%emt 0:00:36]} Nge7
{[%emt 0:02:38]} 10. O-O {[%emt 0:00:21]} Be6 {[%emt 0:00:29]} 11. Nd4 {
[%emt 0:00:19]} Nxd4 {[%emt 0:11:51]} 12. Qxd4 {[%emt 0:00:23]} Bxc3 {[%emt 0:
00:00]} 13. bxc3 {[%emt 0:02:20]} O-O {[%emt 0:00:10]} 14. Rb1 {[%emt 0:03:37]}
b6 {[%emt 0:08:47]} 15. Ba3 {[%emt 0:03:36]} Re8 {[%emt 0:00:42]} 16. Rfd1 {
[%emt 0:03:25]} Rc8 {[%emt 0:02:32]} 17. e4 {[%emt 0:00:32]} Nc6 {[%emt 0:00:
00]} 18. Qa4 {[%emt 0:00:29]} Na5 {[%emt 0:01:53]} 19. exd5 {[%emt 0:00:39]}
Bf5 {[%emt 0:00:15]} 20. Rbc1 {[%emt 0:00:24]} Nc4 {[%emt 0:03:20]} 21. d6 {
[%emt 0:04:31]} Qd7 {[%emt 0:02:16]} 22. Qa6 {[%emt 0:01:20]} Na5 {[%emt 0:00:
00]} 23. Bd5 {[%emt 0:03:19]} Be4 {[%emt 0:02:43]} 24. c4 {[%emt 0:03:22]} Bxd5
{[%emt 0:04:17]} 25. Rxd5 {[%emt 0:03:18]} Re2 {[%emt 0:05:50]} 26. Rxa5 {
[%emt 0:02:37]} bxa5 {[%emt 0:01:17]} 27. c5 {[%emt 0:00:09]} Rce8 {[%emt 0:00:
00]} 28. c6 {[%emt 0:02:02]} Re1+ {[%emt 0:08:41]} 29. Rxe1 {[%emt 0:03:22]}
Rxe1+ {[%emt 0:00:05]} 30. Kg2 {[%emt 0:00:13]} Qf5 {[%emt 0:01:24]} 31. Qc4 {
[%emt 0:00:43]} Qb1 {[%emt 0:00:35]} 32. d7 {[%emt 0:02:38]} Qd1 {[%emt 0:00:
00]} 33. Qc5 {[%emt 0:03:08]} h5 {[%emt 0:01:22]} 34. Qg5 {[%emt 0:03:43]} f6 {
[%emt 0:01:45]} 35. Qxh5 {[%emt 0:00:39]} Rg1+ {[%emt 0:00:08]} 0-1

[Event "44th Chess Olympiad Open 2022"]
[Site "Chennai"]
[Date "2022.07.29"]
[Round "1.80"]
[White "Lim, Zhuo Ren"]
[Black "Smith, Michael A"]
[Result "1-0"]
[WhiteElo "2318"]
[BlackElo "1840"]
[Annotator "RC"]
[PlyCount "45"]
[EventDate "2022.??.??"]
[TimeControl "60"]

1. d4 {[%emt 0:00:10]} Nf6 {[%emt 0:00:43]} 2. c4 {[%emt 0:00:31]} d6 {[%emt 0:
00:00]} 3. Nf3 {[%emt 0:01:03]} c5 {[%emt 0:04:15]} 4. dxc5 {[%emt 0:04:18]}
dxc5 {[%emt 0:00:52]} 5. Qxd8+ {[%emt 0:00:13]} Kxd8 {[%emt 0:00:05]} 6. Nc3 {
[%emt 0:00:16]} e6 {[%emt 0:02:55]} 7. Ne5 {[%emt 0:04:15]} Bd6 {[%emt 0:03:33]
} 8. Nxf7+ {[%emt 0:00:16]} Ke7 {[%emt 0:00:16]} 9. Nxh8 {[%emt 0:01:22]} Nc6 {
[%emt 0:01:42]} 10. Bg5 {[%emt 0:01:00]} Bd7 {[%emt 0:03:37]} 11. O-O-O {
[%emt 0:01:06]} Be5 {[%emt 0:03:12]} 12. Nf7 {[%emt 0:00:55]} Bxc3 {[%emt 0:00:
00]} 13. bxc3 {[%emt 0:00:18]} Kxf7 {[%emt 0:02:15]} 14. Bxf6 {[%emt 0:00:11]}
Be8 {[%emt 0:00:21]} 15. Bh4 {[%emt 0:00:16]} Kg8 {[%emt 0:00:54]} 16. e3 {
[%emt 0:00:29]} a5 {[%emt 0:02:53]} 17. Be2 {[%emt 0:01:04]} a4 {[%emt 0:00:23]
} 18. Rd6 {[%emt 0:00:58]} Bf7 {[%emt 0:01:59]} 19. Rhd1 {[%emt 0:00:23]} h6 {
[%emt 0:01:03]} 20. Rxc6 {[%emt 0:00:21]} bxc6 {[%emt 0:00:22]} 21. Rd8+ {
[%emt 0:00:10]} Rxd8 {[%emt 0:00:12]} 22. Bxd8 {[%emt 0:00:09]} Kf8 {[%emt 0:
00:00]} 23. Kb2 {[%emt 0:00:25]} 1-0

[Event "44th Chess Olympiad Open 2022"]
[Site "Chennai"]
[Date "2022.07.29"]
[Round "1.80"]
[White "Tan, Jun Ying"]
[Black "Conhoff, David"]
[Result "1-0"]
[WhiteElo "2191"]
[BlackElo "1460"]
[Annotator "NA RC"]
[PlyCount "63"]
[EventDate "2022.??.??"]
[TimeControl "60"]

1. d4 {[%emt 0:00:06]} d5 {[%emt 0:00:07]} 2. c4 {[%emt 0:00:14]} e6 {[%emt 0:
00:00]} 3. Nc3 {[%emt 0:00:08]} Nf6 {[%emt 0:00:53]} 4. cxd5 {[%emt 0:00:05]}
exd5 {[%emt 0:01:12]} 5. Bg5 {[%emt 0:00:09]} Bb4 {[%emt 0:01:27]} 6. e3 {
[%emt 0:00:25]} O-O {[%emt 0:02:14]} 7. Bd3 {[%emt 0:00:18]} b6 {[%emt 0:03:29]
} 8. Bxf6 {[%emt 0:04:55]} Qxf6 {[%emt 0:01:10]} 9. Qh5 {[%emt 0:01:45]} h6 {
[%emt 0:04:33]} 10. Qxd5 {[%emt 0:01:01]} c6 {[%emt 0:02:15]} 11. Qf3 {[%emt 0:
00:00]} Nd7 {[%emt 0:05:55]} 12. Qxf6 {[%emt 0:00:44]} Nxf6 {[%emt 0:01:28]}
13. a3 {[%emt 0:00:41]} Bxc3+ {[%emt 0:01:49]} 14. bxc3 {[%emt 0:00:04]} Be6 {
[%emt 0:03:34]} 15. Ne2 {[%emt 0:01:15]} Rab8 {[%emt 0:07:44]} 16. e4 {[%emt 0:
00:00]} b5 {[%emt 0:03:52]} 17. f3 {[%emt 0:08:40]} Bc4 {[%emt 0:01:50]} 18.
Kd2 {[%emt 0:00:48]} Nd7 {[%emt 0:02:18]} 19. Bxc4 {[%emt 0:01:26]} bxc4 {
[%emt 0:00:10]} 20. Rhb1 {[%emt 0:00:17]} g5 {[%emt 0:02:42]} 21. Kc2 {[%emt 0:
00:00]} Rb5 {[%emt 0:03:11]} 22. a4 {[%emt 0:00:50]} Rb6 {[%emt 0:02:06]} 23.
a5 {[%emt 0:05:37]} Rb5 {[%emt 0:02:42]} 24. Rxb5 {[%emt 0:00:24]} cxb5 {
[%emt 0:00:11]} 25. a6 {[%emt 0:00:15]} Rb8 {[%emt 0:00:54]} 26. Ra5 {[%emt 0:
00:00]} Rb6 {[%emt 0:01:28]} 27. d5 {[%emt 0:01:07]} Nb8 {[%emt 0:02:33]} 28.
Nd4 {[%emt 0:00:34]} Nxa6 {[%emt 0:00:45]} 29. Nxb5 {[%emt 0:01:38]} Nc5 {
[%emt 0:01:29]} 30. Na3 {[%emt 0:01:30]} a6 {[%emt 0:02:19]} 31. Rxc5 {[%emt 0:
00:00]} Rb5 {[%emt 0:01:46]} 32. Nxb5 {[%emt 0:00:30]} 1-0

[Event "44th Chess Olympiad Open 2022"]
[Site "Chennai"]
[Date "2022.07.29"]
[Round "1.80"]
[White "Hair, Justin M"]
[Black "Wong, Yinn Long"]
[Result "0-1"]
[WhiteElo "1505"]
[BlackElo "2381"]
[Annotator "RC"]
[PlyCount "80"]
[EventDate "2022.??.??"]
[TimeControl "60"]

1. e4 {[%emt 0:00:09]} e6 {[%emt 0:00:31]} 2. Nf3 {[%emt 0:00:36]} d5 {[%emt 0:
00:00]} 3. e5 {[%emt 0:02:34]} c5 {[%emt 0:00:17]} 4. c3 {[%emt 0:00:41]} Nc6 {
[%emt 0:01:43]} 5. d4 {[%emt 0:01:42]} Qb6 {[%emt 0:00:06]} 6. Be2 {[%emt 0:00:
00]} cxd4 {[%emt 0:01:23]} 7. cxd4 {[%emt 0:01:08]} Nh6 {[%emt 0:00:09]} 8.
Nbd2 {[%emt 0:01:32]} Nf5 {[%emt 0:04:09]} 9. Nb3 {[%emt 0:05:32]} a5 {[%emt 0:
00:00]} 10. Be3 {[%emt 0:14:54]} a4 {[%emt 0:00:55]} 11. Nc5 {[%emt 0:14:27]}
Nxe3 {[%emt 0:00:07]} 12. fxe3 {[%emt 0:00:25]} Bxc5 {[%emt 0:00:09]} 13. dxc5
{[%emt 0:00:59]} Qxc5 {[%emt 0:00:12]} 14. Qd2 {[%emt 0:01:18]} Qb4 {[%emt 0:
00:00]} 15. Qxb4 {[%emt 0:02:20]} Nxb4 {[%emt 0:00:02]} 16. O-O {[%emt 0:00:23]
} Bd7 {[%emt 0:00:21]} 17. a3 {[%emt 0:01:13]} Nc6 {[%emt 0:00:48]} 18. Ng5 {
[%emt 0:02:07]} Nxe5 {[%emt 0:00:13]} 19. Rac1 {[%emt 0:01:27]} Bc6 {[%emt 0:
00:00]} 20. Rf4 {[%emt 0:03:27]} Ke7 {[%emt 0:00:46]} 21. Rcf1 {[%emt 0:01:15]}
f6 {[%emt 0:00:10]} 22. Nf3 {[%emt 0:02:42]} Nxf3+ {[%emt 0:00:07]} 23. R4xf3 {
[%emt 0:01:32]} Rac8 {[%emt 0:00:35]} 24. g4 {[%emt 0:01:08]} Be8 {[%emt 0:00:
00]} 25. R3f2 {[%emt 0:03:02]} Rc2 {[%emt 0:00:31]} 26. Bd1 {[%emt 0:04:24]}
Rxf2 {[%emt 0:00:11]} 27. Rxf2 {[%emt 0:00:15]} Bd7 {[%emt 0:00:16]} 28. Rc2 {
[%emt 0:00:25]} Kd6 {[%emt 0:00:05]} 29. Kf2 {[%emt 0:01:02]} b5 {[%emt 0:00:
00]} 30. Bf3 {[%emt 0:02:46]} Rc8 {[%emt 0:00:06]} 31. Rd2 {[%emt 0:00:29]} Ke7
{[%emt 0:00:42]} 32. e4 {[%emt 0:00:46]} dxe4 {[%emt 0:00:05]} 33. Bxe4 {
[%emt 0:00:16]} g6 {[%emt 0:00:10]} 34. Kg3 {[%emt 0:00:42]} b4 {[%emt 0:00:27]
} 35. Bd3 {[%emt 0:08:09]} bxa3 {[%emt 0:00:08]} 36. bxa3 {[%emt 0:00:06]} Rc3
{[%emt 0:00:03]} 37. Kf2 {[%emt 0:01:09]} Rxa3 {[%emt 0:00:08]} 38. Ke2 {
[%emt 0:00:19]} e5 {[%emt 0:00:20]} 39. Rc2 {[%emt 0:00:30]} Bxg4+ {[%emt 0:00:
00]} 40. Kd2 {[%emt 0:00:24]} Rxd3+ {[%emt 0:00:08]} 0-1

[Event "44th Chess Olympiad Open 2022"]
[Site "Chennai"]
[Date "2022.07.29"]
[Round "1.80"]
[White "Bansal, Nayan"]
[Black "Poh, Yu Tian"]
[Result "0-1"]
[WhiteElo "1444"]
[BlackElo "2118"]
[Annotator "NA"]
[PlyCount "46"]
[EventDate "2022.??.??"]
[TimeControl "60"]

1. f4 {[%emt 0:00:14]} Nf6 {[%emt 0:00:50]} 2. Nf3 {[%emt 0:00:45]} c5 {
[%emt 0:00:51]} 3. c4 {[%emt 0:01:30]} d5 {[%emt 0:01:07]} 4. cxd5 {[%emt 0:00:
00]} Nxd5 {[%emt 0:00:09]} 5. d3 {[%emt 0:00:52]} Nc6 {[%emt 0:00:44]} 6. e4 {
[%emt 0:01:10]} Nc7 {[%emt 0:00:51]} 7. Nc3 {[%emt 0:01:32]} Bg4 {[%emt 0:00:
00]} 8. Be2 {[%emt 0:01:29]} e6 {[%emt 0:01:21]} 9. O-O {[%emt 0:02:04]} Be7 {
[%emt 0:00:40]} 10. Be3 {[%emt 0:01:51]} O-O {[%emt 0:00:45]} 11. d4 {[%emt 0:
00:00]} Bxf3 {[%emt 0:00:27]} 12. Rxf3 {[%emt 0:05:01]} cxd4 {[%emt 0:01:25]}
13. Qd2 {[%emt 0:01:27]} dxe3 {[%emt 0:00:07]} 14. Qxe3 {[%emt 0:00:22]} Nd4 {
[%emt 0:00:21]} 15. Bd3 {[%emt 0:05:38]} Nxf3+ {[%emt 0:00:17]} 16. Qxf3 {
[%emt 0:00:41]} e5 {[%emt 0:00:23]} 17. Rd1 {[%emt 0:02:07]} Bc5+ {[%emt 0:00:
00]} 18. Kh1 {[%emt 0:00:33]} Qf6 {[%emt 0:00:08]} 19. f5 {[%emt 0:01:52]} Rfd8
{[%emt 0:00:18]} 20. Rc1 {[%emt 0:01:56]} Qg5 {[%emt 0:00:33]} 21. Ne2 {
[%emt 0:00:49]} Qe3 {[%emt 0:00:29]} 22. Qxe3 {[%emt 0:01:19]} Bxe3 {[%emt 0:
00:00]} 23. Rd1 {[%emt 0:00:54]} Na6 {[%emt 0:00:08]} 0-1

[Event "44th Chess Olympiad Open 2022"]
[Site "Chennai"]
[Date "2022.07.29"]
[Round "1.81"]
[White "Fathi Robleh Chireh"]
[Black "Bibby, Simon"]
[Result "0-1"]
[WhiteElo "1779"]
[BlackElo "2147"]
[Annotator "NA RC"]
[PlyCount "84"]
[EventDate "2022.??.??"]
[TimeControl "60"]

1. e4 {[%emt 0:00:05]} c5 {[%emt 0:00:11]} 2. Nc3 {[%emt 0:00:37]} Nc6 {
[%emt 0:00:20]} 3. Nf3 {[%emt 0:01:13]} d6 {[%emt 0:01:51]} 4. Bb5 {[%emt 0:00:
00]} e5 {[%emt 0:00:15]} 5. h3 {[%emt 0:01:09]} f5 {[%emt 0:00:41]} 6. exf5 {
[%emt 0:02:16]} Bxf5 {[%emt 0:00:06]} 7. d3 {[%emt 0:00:33]} Nf6 {[%emt 0:00:
00]} 8. Bg5 {[%emt 0:06:20]} Be7 {[%emt 0:00:15]} 9. Qe2 {[%emt 0:02:30]} O-O {
[%emt 0:00:36]} 10. Be3 {[%emt 0:01:05]} Nd4 {[%emt 0:00:53]} 11. Qd1 {[%emt 0:
00:00]} Kh8 {[%emt 0:13:04]} 12. g4 {[%emt 0:07:54]} Nxb5 {[%emt 0:07:06]} 13.
Nxb5 {[%emt 0:05:59]} Nxg4 {[%emt 0:04:18]} 14. Qd2 {[%emt 0:09:03]} Nxe3 {
[%emt 0:02:16]} 15. Qxe3 {[%emt 0:00:33]} Bd7 {[%emt 0:01:44]} 16. Nc3 {
[%emt 0:00:54]} Bc6 {[%emt 0:00:13]} 17. Ne4 {[%emt 0:00:30]} d5 {[%emt 0:00:
00]} 18. Ned2 {[%emt 0:00:34]} e4 {[%emt 0:05:05]} 19. Ne5 {[%emt 0:04:17]} d4
{[%emt 0:02:13]} 20. Qg3 {[%emt 0:03:51]} Bh4 {[%emt 0:03:47]} 21. Nxc6 {
[%emt 0:01:59]} bxc6 {[%emt 0:00:13]} 22. Qg4 {[%emt 0:00:42]} Rxf2 {[%emt 0:
00:00]} 23. O-O-O {[%emt 0:01:02]} exd3 {[%emt 0:02:52]} 24. cxd3 {[%emt 0:00:
00]} Bg5 {[%emt 0:03:45]} 25. Rhg1 {[%emt 0:01:00]} Bh6 {[%emt 0:00:12]} 26.
Rg2 {[%emt 0:01:18]} Rxg2 {[%emt 0:03:11]} 27. Qxg2 {[%emt 0:00:02]} Qd5 {
[%emt 0:03:23]} 28. Qxd5 {[%emt 0:02:42]} cxd5 {[%emt 0:00:01]} 29. Kc2 {
[%emt 0:00:26]} Bxd2 {[%emt 0:02:05]} 30. Kxd2 {[%emt 0:00:20]} Kg8 {[%emt 0:
00:00]} 31. Rc1 {[%emt 0:00:05]} Rc8 {[%emt 0:00:14]} 32. b4 {[%emt 0:01:04]}
c4 {[%emt 0:00:06]} 33. dxc4 {[%emt 0:00:30]} dxc4 {[%emt 0:00:16]} 34. Re1 {
[%emt 0:00:36]} Kf7 {[%emt 0:00:32]} 35. a4 {[%emt 0:00:21]} Kf6 {[%emt 0:00:
00]} 36. Re4 {[%emt 0:00:14]} c3+ {[%emt 0:00:49]} 37. Kd1 {[%emt 0:01:37]} Rc4
{[%emt 0:02:20]} 38. Rf4+ {[%emt 0:01:47]} Ke6 {[%emt 0:02:08]} 39. Re4+ {
[%emt 0:00:03]} Kd6 {[%emt 0:00:25]} 40. Rh4 {[%emt 0:00:44]} Rxb4 {[%emt 0:00:
00]} 41. Rxh7 {[%emt 0:31:56]} d3 {[%emt 0:30:20]} 42. Kc1 {[%emt 0:00:09]} d2+
{[%emt 0:00:57]} 0-1

[Event "44th Chess Olympiad Open 2022"]
[Site "Chennai"]
[Date "2022.07.29"]
[Round "1.81"]
[White "Mohamed Ali Djama"]
[Black "Tran, Thanh Tu"]
[Result "0-1"]
[WhiteElo "1629"]
[BlackElo "2375"]
[Annotator "RC"]
[PlyCount "56"]
[EventDate "2022.??.??"]
[TimeControl "60"]

1. e4 {[%emt 0:00:03]} Nc6 {[%emt 0:00:21]} 2. d4 {[%emt 0:00:59]} d6 {[%emt 0:
00:00]} 3. Nc3 {[%emt 0:00:17]} g6 {[%emt 0:00:32]} 4. Be3 {[%emt 0:01:16]} Bg7
{[%emt 0:00:20]} 5. Bb5 {[%emt 0:00:37]} a6 {[%emt 0:00:21]} 6. Ba4 {[%emt 0:
00:00]} b5 {[%emt 0:00:49]} 7. Bb3 {[%emt 0:02:10]} Nf6 {[%emt 0:00:40]} 8. f3
{[%emt 0:03:35]} O-O {[%emt 0:07:55]} 9. Nge2 {[%emt 0:00:24]} e5 {[%emt 0:00:
00]} 10. Qd2 {[%emt 0:00:23]} exd4 {[%emt 0:03:53]} 11. Nxd4 {[%emt 0:00:42]}
Nxd4 {[%emt 0:00:09]} 12. Bxd4 {[%emt 0:00:25]} c5 {[%emt 0:00:18]} 13. Bxf6 {
[%emt 0:00:02]} Qxf6 {[%emt 0:00:36]} 14. Bd5 {[%emt 0:01:06]} Rb8 {[%emt 0:00:
00]} 15. O-O {[%emt 0:08:32]} Bd7 {[%emt 0:02:14]} 16. Rab1 {[%emt 0:02:11]} a5
{[%emt 0:16:16]} 17. Ne2 {[%emt 0:08:14]} a4 {[%emt 0:04:04]} 18. Rfd1 {
[%emt 0:04:05]} h5 {[%emt 0:02:21]} 19. b4 {[%emt 0:03:14]} h4 {[%emt 0:04:48]}
20. Qf4 {[%emt 0:02:41]} Qe7 {[%emt 0:05:48]} 21. bxc5 {[%emt 0:03:32]} dxc5 {
[%emt 0:00:05]} 22. Kh1 {[%emt 0:11:42]} Rbd8 {[%emt 0:04:15]} 23. Rg1 {
[%emt 0:09:13]} Be6 {[%emt 0:04:53]} 24. Bxe6 {[%emt 0:05:31]} Qxe6 {[%emt 0:
00:00]} 25. Qxh4 {[%emt 0:02:48]} Qxa2 {[%emt 0:01:11]} 26. Rxb5 {[%emt 0:00:
00]} Qc4 {[%emt 0:00:37]} 27. Nf4 {[%emt 0:02:57]} Qxb5 {[%emt 0:00:08]} 28.
Nd5 {[%emt 0:00:02]} Rxd5 {[%emt 0:00:28]} 0-1

[Event "44th Chess Olympiad Open 2022"]
[Site "Chennai"]
[Date "2022.07.29"]
[Round "1.82"]
[White "Kourakoumba, Florent"]
[Black "Al-Zendani, Zendan"]
[Result "0-1"]
[WhiteElo "1677"]
[BlackElo "2284"]
[Annotator "NA RC"]
[PlyCount "74"]
[EventDate "2022.??.??"]
[TimeControl "60"]

1. e4 {[%emt 0:00:14]} c5 {[%emt 0:00:07]} 2. c3 {[%emt 0:01:23]} Nf6 {[%emt 0:
00:00]} 3. Bd3 {[%emt 0:01:02]} Nc6 {[%emt 0:00:39]} 4. Nf3 {[%emt 0:02:06]} g6
{[%emt 0:00:33]} 5. O-O {[%emt 0:00:18]} Bg7 {[%emt 0:00:32]} 6. Bc2 {[%emt 0:
00:00]} O-O {[%emt 0:00:46]} 7. Na3 {[%emt 0:00:14]} d6 {[%emt 0:00:33]} 8. d3
{[%emt 0:00:23]} Rb8 {[%emt 0:01:04]} 9. Nc4 {[%emt 0:00:52]} b5 {[%emt 0:00:
00]} 10. Ne3 {[%emt 0:00:30]} e5 {[%emt 0:03:37]} 11. Bd2 {[%emt 0:00:24]} Be6
{[%emt 0:05:57]} 12. Qc1 {[%emt 0:00:15]} Nh5 {[%emt 0:07:25]} 13. Nd1 {
[%emt 0:01:10]} Bg4 {[%emt 0:00:48]} 14. Ne1 {[%emt 0:00:39]} Be2 {[%emt 0:00:
00]} 15. Bh6 {[%emt 0:00:47]} Bxf1 {[%emt 0:00:28]} 16. Kxf1 {[%emt 0:00:32]}
d5 {[%emt 0:04:48]} 17. exd5 {[%emt 0:00:43]} Qxd5 {[%emt 0:00:11]} 18. Nf3 {
[%emt 0:00:38]} Rfe8 {[%emt 0:03:46]} 19. Ne3 {[%emt 0:00:35]} Bxh6 {[%emt 0:
00:00]} 20. Nxd5 {[%emt 0:00:21]} Bxc1 {[%emt 0:00:09]} 21. Rxc1 {[%emt 0:00:
00]} Red8 {[%emt 0:01:40]} 22. c4 {[%emt 0:01:01]} bxc4 {[%emt 0:02:34]} 23.
dxc4 {[%emt 0:00:27]} Rxb2 {[%emt 0:00:20]} 24. Bb3 {[%emt 0:00:29]} Kg7 {
[%emt 0:01:28]} 25. g3 {[%emt 0:00:26]} Nf6 {[%emt 0:04:11]} 26. Ne1 {[%emt 0:
00:00]} e4 {[%emt 0:01:41]} 27. Nc2 {[%emt 0:01:32]} Ne5 {[%emt 0:02:41]} 28.
Ke2 {[%emt 0:01:09]} Nxd5 {[%emt 0:00:51]} 29. cxd5 {[%emt 0:00:33]} c4 {
[%emt 0:00:18]} 30. Ba4 {[%emt 0:01:46]} Rxa2 {[%emt 0:00:08]} 31. Bc6 {
[%emt 0:00:30]} Nd3 {[%emt 0:00:09]} 32. Ra1 {[%emt 0:01:36]} Rxc2+ {[%emt 0:
00:00]} 33. Ke3 {[%emt 0:00:45]} Nb4 {[%emt 0:01:30]} 34. Rxa7 {[%emt 0:00:38]}
Nxd5+ {[%emt 0:01:04]} 35. Bxd5 {[%emt 0:00:34]} Rxd5 {[%emt 0:00:08]} 36. Kxe4
{[%emt 0:01:00]} Rd3 {[%emt 0:00:07]} 37. f4 {[%emt 0:00:52]} Re2# {[%emt 0:00:
00]} 0-1

[Event "44th Chess Olympiad Open 2022"]
[Site "Chennai"]
[Date "2022.07.29"]
[Round "1.83"]
[White "Galvez Dastin, Eduardo"]
[Black "Ramachandran, R..."]
[Result "1-0"]
[WhiteElo "2152"]
[BlackElo "1994"]
[Annotator "NA RC"]
[PlyCount "61"]
[EventDate "2022.??.??"]
[TimeControl "60"]

1. d4 {[%emt 0:00:07]} c6 {[%emt 0:01:00]} 2. c4 {[%emt 0:00:07]} e6 {[%emt 0:
00:00]} 3. e4 {[%emt 0:00:23]} d6 {[%emt 0:04:02]} 4. Nc3 {[%emt 0:00:59]} g6 {
[%emt 0:06:40]} 5. f4 {[%emt 0:04:30]} Bd7 {[%emt 0:04:34]} 6. Nf3 {[%emt 0:00:
00]} Bg7 {[%emt 0:02:00]} 7. Be3 {[%emt 0:01:43]} Ne7 {[%emt 0:05:06]} 8. Be2 {
[%emt 0:13:33]} O-O {[%emt 0:03:53]} 9. Qb3 {[%emt 0:07:40]} Qc8 {[%emt 0:00:
00]} 10. Qa3 {[%emt 0:00:31]} Qc7 {[%emt 0:02:30]} 11. Bf2 {[%emt 0:01:12]} f5
{[%emt 0:02:24]} 12. e5 {[%emt 0:00:23]} Nc8 {[%emt 0:02:59]} 13. O-O {[%emt 0:
00:00]} d5 {[%emt 0:03:05]} 14. Rac1 {[%emt 0:00:25]} Nb6 {[%emt 0:04:30]} 15.
cxd5 {[%emt 0:02:47]} exd5 {[%emt 0:05:06]} 16. Nb5 {[%emt 0:05:30]} Qd8 {
[%emt 0:01:15]} 17. Nd6 {[%emt 0:00:19]} Bc8 {[%emt 0:03:54]} 18. Qb3 {[%emt 0:
00:00]} N8d7 {[%emt 0:01:34]} 19. Bh4 {[%emt 0:00:25]} Qc7 {[%emt 0:03:54]} 20.
Be7 {[%emt 0:00:12]} Bh8 {[%emt 0:03:19]} 21. Nb5 {[%emt 0:00:40]} Qb8 {
[%emt 0:01:26]} 22. Bd6 {[%emt 0:00:07]} cxb5 {[%emt 0:02:13]} 23. Bxb8 {
[%emt 0:00:12]} Rxb8 {[%emt 0:01:00]} 24. Bxb5 {[%emt 0:00:10]} a6 {[%emt 0:00:
00]} 25. Rxc8 {[%emt 0:00:21]} Rbxc8 {[%emt 0:00:48]} 26. Bxd7 {[%emt 0:00:08]}
Rcd8 {[%emt 0:00:34]} 27. Be6+ {[%emt 0:00:19]} Kg7 {[%emt 0:00:41]} 28. Qxb6 {
[%emt 0:00:04]} Rb8 {[%emt 0:01:47]} 29. Qc7+ {[%emt 0:00:17]} Kh6 {[%emt 0:00:
00]} 30. Ng5 {[%emt 0:00:00]} Bg7 {[%emt 0:00:14]} 31. Rf3 {[%emt 0:00:00]} 1-0

[Event "44th Chess Olympiad Open 2022"]
[Site "Chennai"]
[Date "2022.07.29"]
[Round "1.83"]
[White "Pillay, Ragul"]
[Black "Lorenzana, Wilson Estuardo"]
[Result "0-1"]
[WhiteElo "1341"]
[BlackElo "2182"]
[Annotator "NA RC"]
[PlyCount "60"]
[EventDate "2022.??.??"]
[TimeControl "60"]

1. d4 {[%emt 0:00:16]} Nf6 {[%emt 0:00:18]} 2. c4 {[%emt 0:00:42]} g6 {[%emt 0:
00:00]} 3. Nc3 {[%emt 0:00:36]} Bg7 {[%emt 0:00:07]} 4. e4 {[%emt 0:01:41]} O-O
{[%emt 0:00:08]} 5. e5 {[%emt 0:03:24]} Ne8 {[%emt 0:00:06]} 6. Nf3 {[%emt 0:
00:00]} d6 {[%emt 0:00:07]} 7. Bf4 {[%emt 0:07:31]} Nc6 {[%emt 0:02:46]} 8. h3
{[%emt 0:00:44]} dxe5 {[%emt 0:06:51]} 9. dxe5 {[%emt 0:01:23]} Be6 {[%emt 0:
00:00]} 10. Be2 {[%emt 0:05:44]} f6 {[%emt 0:04:13]} 11. exf6 {[%emt 0:07:42]}
exf6 {[%emt 0:00:47]} 12. O-O {[%emt 0:04:02]} Rf7 {[%emt 0:04:14]} 13. Qb3 {
[%emt 0:06:13]} Qc8 {[%emt 0:00:14]} 14. Nd5 {[%emt 0:06:47]} b6 {[%emt 0:00:
00]} 15. Qe3 {[%emt 0:04:37]} Bf8 {[%emt 0:06:02]} 16. Rad1 {[%emt 0:12:04]}
Ne7 {[%emt 0:04:51]} 17. Nxc7 {[%emt 0:05:10]} Nxc7 {[%emt 0:00:07]} 18. Bxc7 {
[%emt 0:00:42]} Nf5 {[%emt 0:00:05]} 19. Qf4 {[%emt 0:01:25]} Qxc7 {[%emt 0:00:
00]} 20. Qe4 {[%emt 0:01:22]} Re8 {[%emt 0:00:09]} 21. g4 {[%emt 0:07:24]} Ng7
{[%emt 0:01:21]} 22. Nd4 {[%emt 0:04:17]} Bc8 {[%emt 0:00:59]} 23. Qc2 {
[%emt 0:01:06]} Bc5 {[%emt 0:00:09]} 24. Nf3 {[%emt 0:01:11]} Qg3+ {[%emt 0:00:
00]} 25. Kh1 {[%emt 0:00:30]} Qxh3+ {[%emt 0:00:54]} 26. Nh2 {[%emt 0:00:17]}
Bb7+ {[%emt 0:00:39]} 27. f3 {[%emt 0:00:31]} Ne6 {[%emt 0:01:06]} 28. Bd3 {
[%emt 0:01:24]} Nf4 {[%emt 0:01:57]} 29. Be4 {[%emt 0:00:33]} Rfe7 {[%emt 0:00:
00]} 30. Qd2 {[%emt 0:01:41]} Rxe4 {[%emt 0:00:00]} 0-1

[Event "44th Chess Olympiad Open 2022"]
[Site "Chennai"]
[Date "2022.07.29"]
[Round "1.84"]
[White "Escalante Ramirez, Brian Sebasti"]
[Black "Ramos Espinoza, Efren Andres"]
[Result "0-1"]
[WhiteElo "2496"]
[BlackElo "2158"]
[Annotator "ChessBase"]
[PlyCount "86"]
[EventDate "2022.??.??"]
[TimeControl "60"]

1. c4 {[%emt 0:00:08]} c6 {[%emt 0:00:23]} 2. Nc3 {[%emt 0:00:24]} d5 {[%emt 0:
00:00]} 3. cxd5 {[%emt 0:01:19]} cxd5 {[%emt 0:00:06]} 4. d4 {[%emt 0:00:14]}
Nc6 {[%emt 0:00:18]} 5. g3 {[%emt 0:00:43]} Nf6 {[%emt 0:04:31]} 6. Bg2 {
[%emt 0:00:23]} Bf5 {[%emt 0:01:00]} 7. a3 {[%emt 0:01:33]} e6 {[%emt 0:00:22]}
8. Nf3 {[%emt 0:01:03]} h6 {[%emt 0:02:43]} 9. O-O {[%emt 0:00:35]} Bd6 {
[%emt 0:01:56]} 10. Re1 {[%emt 0:02:13]} O-O {[%emt 0:02:47]} 11. b4 {[%emt 0:
00:00]} Rc8 {[%emt 0:01:12]} 12. Bb2 {[%emt 0:00:26]} Qd7 {[%emt 0:04:02]} 13.
Rc1 {[%emt 0:01:00]} Ne4 {[%emt 0:02:56]} 14. Nd2 {[%emt 0:07:45]} Nxc3 {
[%emt 0:02:30]} 15. Bxc3 {[%emt 0:00:17]} Bg4 {[%emt 0:02:34]} 16. Nf3 {
[%emt 0:02:51]} f5 {[%emt 0:02:57]} 17. e3 {[%emt 0:03:01]} Rc7 {[%emt 0:01:55]
} 18. Qd3 {[%emt 0:03:15]} Rfc8 {[%emt 0:04:55]} 19. Bd2 {[%emt 0:03:46]} Qe8 {
[%emt 0:06:14]} 20. h3 {[%emt 0:03:39]} Bh5 {[%emt 0:00:56]} 21. Rc3 {[%emt 0:
00:00]} Bg6 {[%emt 0:06:08]} 22. Nh4 {[%emt 0:04:28]} Bh7 {[%emt 0:00:34]} 23.
f4 {[%emt 0:00:27]} g5 {[%emt 0:03:12]} 24. Nf3 {[%emt 0:00:42]} Rg7 {[%emt 0:
00:00]} 25. Rec1 {[%emt 0:07:23]} Rd8 {[%emt 0:00:24]} 26. Ne1 {[%emt 0:05:08]}
Kh8 {[%emt 0:02:25]} 27. Kh1 {[%emt 0:01:48]} Qh5 {[%emt 0:00:38]} 28. Qf1 {
[%emt 0:01:17]} Rdg8 {[%emt 0:01:04]} 29. Bf3 {[%emt 0:06:07]} g4 {[%emt 0:00:
00]} 30. Bxd5 {[%emt 0:02:38]} exd5 {[%emt 0:00:11]} 31. h4 {[%emt 0:00:03]}
Qe8 {[%emt 0:00:24]} 32. Qb5 {[%emt 0:00:37]} Qe4+ {[%emt 0:00:38]} 33. Kh2 {
[%emt 0:00:06]} Bg6 {[%emt 0:01:10]} 34. Qd3 {[%emt 0:03:55]} Re8 {[%emt 0:00:
00]} 35. Rb3 {[%emt 0:02:01]} Kh7 {[%emt 0:00:39]} 36. Qxe4 {[%emt 0:00:36]}
dxe4 {[%emt 0:00:15]} 37. Bc3 {[%emt 0:00:39]} Rc7 {[%emt 0:00:39]} 38. Bb2 {
[%emt 0:00:55]} Rec8 {[%emt 0:00:35]} 39. Rbc3 {[%emt 0:00:33]} Bf7 {[%emt 0:
00:00]} 40. Kg2 {[%emt 0:00:32]} Ne7 {[%emt 0:03:24]} 41. Rxc7 {[%emt 0:31:32]}
Rxc7 {[%emt 0:30:06]} 42. Rxc7 {[%emt 0:00:09]} Bxc7 {[%emt 0:00:05]} 43. Kf2 {
[%emt 0:00:05]} Bc4 {[%emt 0:00:24]} 0-1